Workbook

Sheet Powers
A2: Rx | B2: Power | C2: Diopters flat | D2: Reverse | E2: Alignment 2 | F2: Optic Zone
A3: 1 | B3: 2.25 | C3: =B3+A3 -> 3.25 | D3: =C3+2 -> 5.25 | E3: -0.62 | F3: 6
A4: 1.12 | B4: 2.25 | C4: 3.37 | D4: =C4+2 -> 5.37 | E4: -0.62
A5: 1.25 | B5: 2.25 | C5: 3.5 | D5: 5.5 | E5: -0.62
A6: 1.373333333 | B6: 2.25 | C6: 3.623333333 | D6: 5.623333333 | E6: -0.62 | F6: Steep Curve Width
A7: 1.498333333 | B7: 2.25 | C7: 3.748333333 | D7: 5.748333333 | E7: -0.62 | F7: 1
A8: 1.623333333 | B8: 2 | C8: 3.623333333 | D8: =C8+2.25 -> 5.873333333 | E8: -0.75
A9: 1.748333333 | B9: 2 | C9: 3.748333333 | D9: =C9+2.25 -> 5.998333333 | E9: -0.75
A10: 1.873333333 | B10: 2 | C10: 3.873333333 | D10: 6.123333333 | E10: -0.75
A11: 1.998333333 | B11: 2 | C11: 3.998333333 | D11: 6.248333333 | E11: -0.75
A12: 2.123333333 | B12: 2 | C12: 4.123333333 | D12: 6.373333333 | E12: -0.75
A13: 2.248333333 | B13: 1.75 | C13: 3.998333333 | D13: =C13+2.5 -> 6.498333333 | E13: -0.87
A14: 2.373333333 | B14: 1.75 | C14: 4.123333333 | D14: =C14+2.5 -> 6.623333333 | E14: -0.87
A15: 2.498333333 | B15: 1.75 | C15: 4.248333333 | D15: 6.748333333 | E15: -0.87
A16: 2.623333333 | B16: 1.75 | C16: 4.373333333 | D16: 6.873333333 | E16: -0.87
A17: 2.748333333 | B17: 1.75 | C17: 4.498333333 | D17: 6.998333333 | E17: -0.87
A18: 2.873333333 | B18: 1.5 | C18: 4.373333333 | D18: =C18+2.75 -> 7.123333333 | E18: -1
A19: 2.998333333 | B19: 1.5 | C19: 4.498333333 | D19: =C19+2.75 -> 7.248333333 | E19: -1
A20: 3.123333333 | B20: 1.5 | C20: 4.623333333 | D20: 7.373333333 | E20: -1
A21: 3.248333333 | B21: 1.5 | C21: 4.748333333 | D21: 7.498333333 | E21: -1
A22: 3.373333333 | B22: 1.5 | C22: 4.873333333 | D22: 7.623333333 | E22: -1
A23: 3.498333333 | B23: 1.25 | C23: 4.748333333 | D23: =C23+3 -> 7.748333333 | E23: -1.12
A24: 3.623333333 | B24: 1.25 | C24: 4.873333333 | D24: =C24+3 -> 7.873333333 | E24: -1.12
A25: 3.748333333 | B25: 1.25 | C25: 4.998333333 | D25: 7.998333333 | E25: -1.12
A26: 3.873333333 | B26: 1.25 | C26: 5.123333333 | D26: 8.123333333 | E26: -1.12
A27: 3.998333333 | B27: 1.25 | C27: 5.248333333 | D27: 8.248333333 | E27: -1.12
A28: 4.123333333 | B28: 1 | C28: 5.123333333 | D28: =C28+3.25 -> 8.373333333 | E28: -1.25
A29: 4.248333333 | B29: 1 | C29: 5.248333333 | D29: =C29+3.25 -> 8.498333333 | E29: -1.25
A30: 4.37 | B30: 1 | C30: 5.37 | D30: 8.62 | E30: -1.25
A31: 4.498333333 | B31: 1 | C31: 5.498333333 | D31: 8.748333333 | E31: -1.25
A32: 4.62 | B32: 1 | C32: 5.62 | D32: 8.87 | E32: -1.25
A33: 4.748333333 | B33: 0.75 | C33: 5.498333333 | D33: =C33+3.5 -> 8.998333333 | E33: -1.37
A34: 4.87 | B34: 0.75 | C34: 5.62 | D34: =C34+3.5 -> 9.12 | E34: -1.37
A35: 4.998333333 | B35: 0.75 | C35: 5.748333333 | D35: 9.248333333 | E35: -1.37
A36: 5.12 | B36: 0.75 | C36: 5.87 | D36: 9.37 | E36: -1.37
A37: 5.25 | B37: 0.75 | C37: 6 | D37: 9.5 | E37: -1.37
A38: 5.37 | B38: 0.5 | C38: 5.87 | D38: =C38+3.75 -> 9.62 | E38: -1.5
A39: 5.5 | B39: 0.5 | C39: 6 | D39: =C39+3.75 -> 9.75 | E39: -1.5
A40: 5.62 | B40: 0.5 | C40: 6.12 | D40: 9.87 | E40: -1.5
A41: 5.75 | B41: 0.5 | C41: 6.25 | D41: 10 | E41: -1.5
A42: 5.87 | B42: 0.5 | C42: 6.37 | D42: 10.12 | E42: -1.5
A43: 6 | B43: 0.5 | C43: =B43+A43 -> 6.5 | D43: =C43+3.75 -> 10.25 | E43: -1.5

Sheet Calculator
B2: Right (OD) | D2: Left (OS)
B3: Flat K | C3: 45 | D3: Flat K | E3: 46.75
B4: Rx | C4: 6 | D4: Rx | E4: 1
B5: HVID | C5: 12 | D5: HVID | E5: 12
B6: LENS SPECIFICATIONS | D6: LENS SPECIFICATIONS
B7: Base Curve | C7: =337.48/((C3-(C8+C4))) -> 8.765714286 | D7: Base Curve | E7: =337.48/((E3-(E8+E4))) -> 7.75816092
B8: Power | C8: =LOOKUP(C4,Powers!A3:A42,Powers!B3:B42) -> 0.5 | D8: Power | E8: =LOOKUP(Calculator!E4,Powers!A3:A42,Powers!B3:B42) -> 2.25
B9: Diameter | C9: =_xlfn.IFS(C5>12,"11",C5>10.9,"10.6",C5>9.6,"10.2") -> 10.6 | D9: Diameter | E9: =_xlfn.IFS(E5>12,"11",E5>10.9,"10.6",E5>9.6,"10.2") -> 10.6
B10: Optic Zone | C10: 6 | D10: Optic Zone | E10: 6
C11: =LOOKUP(C4,Powers!A3:A43,Powers!D3:D43)+(337.48/C7) -> 48.75 | E11: =LOOKUP(E4,Powers!A3:A43,Powers!D3:D43)+(337.48/E7) -> 48.75
B12: Steep Curve | C12: =337.48/C11 -> 6.922666667 | D12: Steep Curve | E12: =337.48/E11 -> 6.922666667
B13: Width | C13: 1 | D13: Width | E13: 1
B14: Alignment 1 | C14: =337.48/C3 -> 7.499555556 | D14: Alignment 1 | E14: =337.48/E3 -> 7.218823529
B15: Width | C15: =_xlfn.IFS(C5>10.9,".6",C5>9.6,".5") -> .6 | D15: Width | E15: =_xlfn.IFS(E5>10.9,".6",E5>9.6,".5") -> .6
C16: =LOOKUP(C4,Powers!A3:A43,Powers!E3:E43)+C3 -> 43.5 | E16: =LOOKUP(E4,Powers!A3:A43,Powers!E3:E43)+E3 -> 46.13
B17: Alignment 2 | C17: =337.48/C16 -> 7.75816092 | D17: Alignment 2 | E17: =337.48/E16 -> 7.315846521
B18: Width | C18: =_xlfn.IFS(C5>12,".5",C5>10.9,".4",C5>9.6,".3") -> .4 | D18: Width | E18: =_xlfn.IFS(E5>12,".5",E5>10.9,".4",E5>9.6,".3") -> .4
B19: Peripheral Curve | C19: =_xlfn.IFS(C5>11.9,"12.00",C5>10.9,"12.00",C5>9.9,"11.50",C5>8.9,"11.50") -> 12.00 | D19: Peripheral Curve | E19: =_xlfn.IFS(E5>11.9,"12.00",E5>10.9,"12.00",E5>9.9,"11.50",E5>8.9,"11.50") -> 12.00
B20: Width | C20: =_xlfn.IFS(C5>12,".4",C5>10.9,".3",C5>9.9,".3",C5>8.9,".3") -> .3 | D20: Width | E20: =_xlfn.IFS(E5>12,".4",E5>10.9,".3",E5>9.9,".3",E5>8.9,".3") -> .3

Sheet MG Calculator
C4: =TODAY() -> 2022-04-15
C5: Account Number:
C6: Point of Contact Name:
C7: Phone Number:
C8: Email:
C9: Patient Name:
C11: ENTER PATIENT DATA
C12: OD LENS | F12: OS LENS
C13: Flat K (D) | D13: 3 | F13: Flat K (D)
C14: Rx (sphere) (between -1.00 and -6.00) | D14: -1 | F14: Rx (sphere) (between -1.00 and -6.00)
C15: HVID (mm) | D15: 14 | F15: HVID (mm)
C17: NOTES:
C22: MG LENS DESIGN
C23: OD LENS | F23: OS LENS
C24: POWER | D24: =LOOKUP(-D14,Powers!A3:A43,Powers!B3:B43) -> 2.25 | F24: POWER | G24: =LOOKUP(-G14,Powers!A3:A43,Powers!B3:B43) -> 
C25: BASE CURVE | D25: =337.48/((D13-(D24-D14))) -> -1349.92 | F25: BASE CURVE | G25: =337.48/((G13-(G24-G14))) -> 
C26: DIAMETER | D26: =_xlfn.IFS(D15>12,"11",D15>10.9,"10.6",D15>9.6,"10.2") -> 11 | F26: DIAMETER | G26: =_xlfn.IFS(G15>12,"11",G15>10.9,"10.6",G15>9.6,"10.2") -> 
C27: OZ | D27: =Powers!F3 -> 6 | F27: OZ | G27: =Powers!F3 -> 6
C28: STEEP CURVE RADIUS | D28: =337.48/(LOOKUP(-D14,Powers!$A3:$A43,Powers!$D3:$D43)+(337.48/'MG Calculator'!D25)) -> 67.496 | F28: STEEP CURVE RADIUS | G28: =337.48/(LOOKUP(-G14,Powers!$A3:$A43,Powers!$D3:$D43)+(337.48/'MG Calculator'!G25)) -> 
C29: STEEP CURVE WIDTH | D29: =Powers!F7 -> 1 | F29: STEEP CURVE WIDTH | G29: =Powers!F7 -> 1
C30: ALIGHNMENT CURVE 1 RADIUS | D30: =337.48/D13 -> 112.4933333 | F30: ALIGHNMENT CURVE 1 RADIUS | G30: =337.48/G13 -> 
C31: ALIGNMENT CURVE 1 WIDTH | D31: =_xlfn.IFS(D15>10.9,"0.6",D15>9.6,"0.5") -> 0.6 | F31: ALIGNMENT CURVE 1 WIDTH | G31: =_xlfn.IFS(G15>10.9,"0.6",G15>9.6,"0.5") -> 
C32: ALIGHNMENT CURVE 2 RADIUS | D32: =337.48/(LOOKUP(-D14,Powers!A3:A43,Powers!E3:E43)+D13) -> 141.7983193 | F32: ALIGHNMENT CURVE 2 RADIUS | G32: =337.48/(LOOKUP(-G14,Powers!A3:A43,Powers!E3:E43)+G13) -> 
C33: ALIGNMENT CURVE 2 WIDTH | D33: =_xlfn.IFS(D15>12,"0.5",D15>10.9,"0.4",D15>9.6,"0.3") -> 0.5 | F33: ALIGNMENT CURVE 2 WIDTH | G33: =_xlfn.IFS(G15>12,"0.5",G15>10.9,"0.4",G15>9.6,"0.3") -> 
C34: PERIPHERAL CURVE RADIUS | D34: =_xlfn.IFS(D15>11.9,"12.00",D15>10.9,"12.00",D15>9.9,"11.50",D15>8.9,"11.50") -> 12.00 | F34: PERIPHERAL CURVE RADIUS | G34: =_xlfn.IFS(G15>11.9,"12.00",G15>10.9,"12.00",G15>9.9,"11.50",G15>8.9,"11.50") -> 
C35: PERIPHERAL CURVE WIDTH | D35: =_xlfn.IFS(D15>12,"0.4",D15>10.9,"0.3",D15>9.9,"0.3",D15>8.9,"0.3") -> 0.4 | F35: PERIPHERAL CURVE WIDTH | G35: =_xlfn.IFS(G15>12,"0.4",G15>10.9,"0.3",G15>9.9,"0.3",G15>8.9,"0.3") -> 
C41: Visionary Contact Lens info@visionarylens.com 800-488-2020
